bitfinex/quotes_BTCUSD_20251215
["timestamp","ask_amount","ask_price","bid_price","bid_amount"]
[1765772656233,0.01586,89398.0,89397.0,0.00011521]
[1765772656467,0.01747287,89398.0,89397.0,0.00011521]
[1765772656685,0.01747287,89398.0,89397.0,0.00611521]
[1765772656686,1.04126287,89398.0,89397.0,0.00611521]
[1765772656906,1.15248387,89398.0,89397.0,0.01211521]
[1765772657345,1.15248387,89398.0,89397.0,0.00611521]
[1765772657781,0.01118843,89378.0,89375.0,0.0002]
[1765772658125,0.01118818,89380.0,89375.0,0.01150404]
[1765772658309,0.01586,89376.0,89375.0,0.00031523]
[1765772658801,0.03965,89376.0,89375.0,0.00031523]
[1765772659364,0.03965,89376.0,89375.0,0.00631523]
[1765772659565,0.03965,89376.0,89375.0,0.00031523]
[1765772659775,0.03965,89376.0,89375.0,0.00731523]
[1765772660171,0.03965,89376.0,89375.0,0.00031523]
[1765772660709,0.03965,89376.0,89375.0,0.00331523]
[1765772661134,0.03965,89376.0,89375.0,0.00489033]
[1765772661346,0.150871,89376.0,89375.0,0.00489033]
[1765772661575,0.03965,89376.0,89375.0,0.00889033]
[1765772661751,0.03965,89376.0,89375.0,0.00189033]
[1765772662047,0.04065,89376.0,89375.0,0.00189033]
[1765772662247,0.04065,89376.0,89375.0,0.00389033]
[1765772664403,0.151871,89376.0,89375.0,0.00389033]
[1765772666178,0.442571,89376.0,89375.0,0.00189033]
[1765772666405,0.441571,89376.0,89375.0,0.00189033]
[1765772666756,0.442571,89376.0,89375.0,0.00189033]
[1765772667701,0.445571,89376.0,89375.0,0.00189033]
[1765772670540,1.445571,89376.0,89375.0,0.00189033]
[1765772671626,1.445571,89376.0,89375.0,3.3e-07]
[1765772672159,1.463211,89376.0,89375.0,3.3e-07]
[1765772672299,0.01986,89376.0,89375.0,3.3e-07]
[1765772672497,0.004,89376.0,89375.0,0.22377655]
[1765772673402,0.003,89376.0,89375.0,0.22377655]
[1765772673829,0.01183,89389.0,89385.0,0.01118755]
[1765772673830,0.02301705,89389.0,89385.0,0.01118755]
[1765772674160,0.01118718,89388.0,89385.0,0.01118755]
[1765772674489,0.03446655,89393.0,89385.0,0.01118755]
[1765772674490,0.01183,89400.0,89391.0,0.0111868]
[1765772674764,0.01183,89400.0,89397.0,0.01118605]
[1765772674970,0.01183,89400.0,89398.0,0.22371865]
[1765772675331,0.01522,89399.0,89397.0,0.01118605]
[1765772676344,0.01768,89406.0,89403.0,0.0111853]
[1765772676925,0.01175,89405.0,89403.0,0.0111853]
[1765772677274,0.03503,89405.0,89403.0,0.0111853]
[1765772677447,0.03514477,89405.0,89403.0,0.0111853]
[1765772677853,0.03514477,89405.0,89404.0,0.22370363]
[1765772677854,0.00011477,89405.0,89404.0,0.22370363]
[1765772678364,0.00211477,89405.0,89403.0,0.0111853]
[1765772678792,0.00211477,89405.0,89404.0,0.22370363]
[1765772678957,0.00011477,89405.0,89404.0,0.22370363]
[1765772679158,0.00111477,89405.0,89404.0,0.22370363]
[1765772680192,0.00111477,89405.0,89403.0,0.0111853]
[1765772680425,0.00311477,89405.0,89403.0,0.0111853]
[1765772681172,0.00111477,89405.0,89403.0,0.0111853]
[1765772681305,0.00011477,89405.0,89403.0,0.0111853]
[1765772681503,0.00011477,89405.0,89403.0,0.0121853]
[1765772681710,0.00011477,89405.0,89404.0,0.002]
[1765772682107,0.00011477,89405.0,89403.0,0.0121853]
[1765772682310,0.0385,89404.0,89403.0,0.003]
[1765772683129,0.04011287,89404.0,89403.0,0.001]
[1765772683360,0.22373198,89393.0,89388.0,0.01118718]
[1765772683567,0.0111868,89391.0,89388.0,0.01118718]
[1765772683767,0.04621668,89392.0,89388.0,0.01118718]
[1765772684250,0.04621668,89392.0,89389.0,0.01118705]
[1765772685002,0.03503,89392.0,89390.0,0.22373867]
[1765772685293,0.03503,89392.0,89389.0,0.01118705]
[1765772685294,0.00011477,89405.0,89399.0,0.0111858]
[1765772685504,0.00011477,89405.0,89402.0,0.22370737]
[1765772686325,0.00011477,89405.0,89402.0,0.2348928]
[1765772687810,0.00111477,89405.0,89402.0,0.2348928]
[1765772688184,0.00111477,89405.0,89402.0,0.2358928]
[1765772688793,0.00111477,89405.0,89402.0,0.2348928]
[1765772688990,0.00111477,89405.0,89402.0,0.01118543]
[1765772689191,0.0111853,89403.0,89399.0,0.0111858]
[1765772689614,0.0344653,89403.0,89402.0,0.001]
[1765772690010,0.0496853,89403.0,89402.0,0.001]
[1765772691185,0.0111858,89399.0,89396.0,0.01118618]
[1765772691569,0.01118593,89398.0,89395.0,0.0111863]
[1765772691969,0.01118593,89398.0,89394.0,0.01118643]
[1765772691970,0.01118605,89397.0,89394.0,0.01118643]
[1765772692299,0.01118605,89397.0,89391.0,0.23492084]
[1765772692300,0.01118618,89396.0,89392.0,0.01118668]
[1765772692812,0.01118618,89396.0,89393.0,0.01118655]
[1765772693088,0.01118668,89392.0,89389.0,0.01118705]
[1765772693295,0.01175,89393.0,89390.0,0.01118693]
[1765772693491,0.13415755,89393.0,89392.0,0.001]
[1765772693744,0.13415755,89393.0,89390.0,0.01118693]
[1765772693942,0.01522,89391.0,89389.0,0.01118705]
[1765772694170,0.01522,89390.0,89389.0,0.01118705]
[1765772694658,0.0385,89390.0,89382.0,0.23494567]
[1765772694886,0.02697,89387.0,89386.0,0.15958743]
[1765772695154,0.01118705,89389.0,89386.0,0.15958743]
[1765772695369,0.0111863,89395.0,89390.0,0.01118693]
[1765772695596,0.01118518,89404.0,89399.0,0.0111858]
[1765772695826,0.23489435,89402.0,89398.0,0.01118593]
[1765772696114,0.01768,89403.0,89399.0,0.02237161]
[1765772696333,0.01768,89403.0,89398.0,0.01118593]
[1765772696334,0.0111853,89403.0,89398.0,0.01118593]
[1765772696555,0.01118543,89402.0,89399.0,0.0111858]
[1765772698057,0.0111853,89403.0,89400.0,0.01118568]
[1765772698464,0.04072982,89405.0,89401.0,0.23489669]
[1765772698829,0.02954477,89405.0,89403.0,0.2237059]
[1765772699248,0.02954477,89405.0,89402.0,0.01118543]
[1765772699424,0.02954477,89405.0,89403.0,0.22370613]
[1765772699628,0.01118543,89402.0,89393.0,0.01118655]
[1765772699830,0.01118593,89398.0,89393.0,0.01118655]
[1765772700192,0.01118605,89397.0,89393.0,0.01118655]
[1765772700532,0.01213,89396.0,89393.0,0.01118655]
[1765772700865,0.01118593,89398.0,89394.0,0.01118643]
[1765772701324,0.01118593,89398.0,89395.0,0.0111863]
[1765772701855,0.03481593,89398.0,89395.0,0.0111863]
[1765772702078,0.01118605,89397.0,89394.0,0.01118643]
[1765772702496,0.01118605,89397.0,89395.0,0.001]
[1765772703381,0.01118605,89397.0,89395.0,0.002]
[1765772703581,0.01118605,89397.0,89395.0,0.003]
[1765772703985,0.02363,89398.0,89395.0,0.0121863]
[1765772704189,0.0111858,89399.0,89395.0,0.0141863]
[1765772704535,0.01118568,89400.0,89397.0,0.01118605]
[1765772704738,0.01118555,89401.0,89397.0,0.01118605]
[1765772705121,0.03481555,89401.0,89397.0,0.01118605]
[1765772706580,0.25852971,89400.0,89396.0,0.01118618]
[1765772706790,0.0111858,89399.0,89396.0,0.01118618]
[1765772707086,0.0111858,89399.0,89389.0,0.01118705]
[1765772707087,0.01641,89397.0,89389.0,0.01118705]
[1765772707316,0.01118705,89389.0,89386.0,0.01118743]
[1765772707536,0.01118705,89389.0,89385.0,0.24612626]
[1765772707537,0.01764,89395.0,89389.0,0.01118705]
[1765772707741,0.0288263,89395.0,89391.0,0.0111868]
[1765772707944,0.01764,89395.0,89391.0,0.0111868]
[1765772708315,0.01764,89395.0,89391.0,0.23492231]
[1765772708700,0.01764,89395.0,89392.0,0.01118668]
[1765772709097,0.25255252,89395.0,89392.0,0.01118668]
[1765772709431,0.01118643,89394.0,89391.0,0.0111868]
[1765772709617,0.02759668,89392.0,89391.0,0.002]
[1765772710036,0.0111868,89391.0,89388.0,0.01118718]
[1765772710242,0.05122668,89392.0,89389.0,0.01118705]
[1765772710619,0.0111868,89391.0,89388.0,0.01118718]
[1765772711270,0.0111868,89391.0,89388.0,0.01318718]
[1765772711478,0.22373867,89390.0,89388.0,0.002]
[1765772711763,0.0111868,89391.0,89388.0,0.002]
[1765772712421,0.0111868,89391.0,89387.0,0.0111873]
[1765772712823,0.22373867,89390.0,89388.0,0.003]
[1765772713353,0.22373867,89390.0,89388.0,0.001]
[1765772713960,0.2349256,89390.0,89387.0,0.002]
[1765772714166,0.23492565,89390.0,89386.0,0.01118743]
[1765772714784,0.25855565,89390.0,89388.0,0.001]
[1765772715041,0.03481693,89390.0,89388.0,0.001]
[1765772715325,0.25855593,89390.0,89386.0,0.01118743]
[1765772715489,0.25855593,89390.0,89388.0,0.002]
[1765772715867,0.02363,89389.0,89388.0,0.002]
[1765772715991,1.44357387,89389.0,89388.0,0.002]
[1765772716199,0.01118931,89371.0,89367.0,0.01143255]
[1765772716422,0.23497584,89371.0,89367.0,0.01143255]
[1765772716828,0.01118893,89374.0,89371.0,0.01118931]
[1765772717230,0.01118893,89374.0,89370.0,0.01118943]
[1765772717430,0.23497029,89373.0,89369.0,0.01118956]
[1765772717666,0.01118943,89370.0,89369.0,4.3e-05]
[1765772717923,0.1404333,89370.0,89369.0,4.3e-05]
[1765772718094,0.1817433,89370.0,89369.0,4.3e-05]
[1765772719460,0.0705223,89370.0,89369.0,0.002043]
[1765772720102,0.0705223,89370.0,89369.0,4.3e-05]
[1765772720482,0.0705223,89370.0,89369.0,0.001043]
[1765772720679,0.0705223,89370.0,89369.0,0.002043]
[1765772721003,0.0705223,89370.0,89369.0,0.001043]
[1765772723132,0.02886943,89370.0,89369.0,0.001043]
[1765772723888,0.06890943,89370.0,89369.0,0.001043]
[1765772728321,0.0705223,89370.0,89369.0,0.001043]
[1765772728522,0.1817433,89370.0,89369.0,0.001043]
[1765772729085,0.1817433,89370.0,89369.0,4.3e-05]
[1765772730591,0.1837433,89370.0,89369.0,4.3e-05]
[1765772731622,0.0725223,89370.0,89369.0,4.3e-05]
[1765772732558,0.03770287,89370.0,89369.0,4.3e-05]
[1765772732760,0.002,89370.0,89369.0,4.3e-05]
[1765772732919,0.01118906,89373.0,89370.0,0.01118943]
[1765772734027,0.01118893,89374.0,89370.0,0.01118943]
[1765772734219,0.01118906,89373.0,89369.0,0.01223256]
[1765772734434,0.01118906,89373.0,89369.0,0.01123256]
[1765772734749,0.01118906,89373.0,89370.0,0.002]
[1765772735111,0.23497101,89373.0,89370.0,0.002]
[1765772735280,0.23958623,89371.0,89369.0,4.3e-05]
[1765772735483,0.0158,89370.0,89369.0,0.002043]
[1765772735734,0.03845,89370.0,89369.0,0.002043]
[1765772736074,0.22378623,89371.0,89369.0,4.3e-05]
[1765772736246,0.03845,89370.0,89369.0,4.3e-05]
[1765772736419,0.0158,89370.0,89369.0,4.3e-05]
[1765772736831,0.0168,89370.0,89369.0,4.3e-05]
[1765772737029,0.0158,89370.0,89369.0,4.3e-05]
[1765772737441,0.01118918,89372.0,89369.0,4.3e-05]
[1765772737839,0.24628851,89374.0,89369.0,0.001043]
[1765772738151,0.02250893,89374.0,89371.0,0.01118931]
[1765772738355,0.01118906,89373.0,89370.0,0.01118943]
[1765772738711,0.01118918,89372.0,89369.0,0.01223256]
[1765772739131,0.01118918,89372.0,89369.0,0.01123256]
[1765772739335,0.01768,89374.0,89371.0,0.01118931]
[1765772739541,0.01868,89374.0,89372.0,0.22378171]
[1765772739920,0.01118856,89377.0,89374.0,0.01118893]
[1765772740154,0.03830906,89373.0,89370.0,0.001]
[1765772740332,0.0158,89371.0,89370.0,0.001]
[1765772740538,0.03845,89371.0,89370.0,0.001]
[1765772740708,0.22378874,89370.0,89369.0,4.3e-05]
[1765772740910,0.26223874,89370.0,89369.0,4.3e-05]
[1765772741121,0.26223874,89370.0,89369.0,0.001043]
[1765772741571,0.26223874,89370.0,89369.0,4.3e-05]
[1765772741776,0.26223874,89370.0,89369.0,0.002043]
[1765772743729,0.26223874,89370.0,89369.0,4.3e-05]
[1765772744100,0.26423874,89370.0,89369.0,4.3e-05]
[1765772746084,1.26423874,89370.0,89369.0,4.3e-05]
[1765772746479,1.37545974,89370.0,89369.0,4.3e-05]
[1765772746705,0.26423874,89370.0,89369.0,4.3e-05]
[1765772746911,0.37545974,89370.0,89369.0,4.3e-05]
[1765772747085,0.28191874,89370.0,89369.0,4.3e-05]
[1765772748072,0.39313974,89370.0,89369.0,4.3e-05]
[1765772748269,0.39113974,89370.0,89369.0,4.3e-05]
[1765772748721,0.39213974,89370.0,89369.0,0.001043]
[1765772749137,1.39213974,89370.0,89369.0,0.001043]
[1765772751097,0.39213974,89370.0,89369.0,0.001043]
[1765772751290,1.28091874,89370.0,89369.0,0.001043]
[1765772751560,1.39213974,89370.0,89369.0,0.001043]
[1765772751959,1.03803974,89370.0,89369.0,0.001043]
[1765772752163,0.28091874,89370.0,89369.0,0.001043]
[1765772752294,0.39213974,89370.0,89369.0,0.001043]
[1765772752499,1.39213974,89370.0,89369.0,0.001043]
[1765772752940,0.39213974,89370.0,89369.0,0.001043]
[1765772753144,1.39213974,89370.0,89369.0,0.001043]
[1765772753720,0.54321874,89370.0,89369.0,0.001043]
[1765772753929,0.51861874,89370.0,89369.0,0.001043]
[1765772754152,0.46951874,89370.0,89369.0,0.001043]
[1765772755129,1.28091874,89370.0,89369.0,0.001043]
[1765772755328,1.39213974,89370.0,89369.0,0.001043]
[1765772761195,0.39213974,89370.0,89369.0,0.001043]
[1765772761416,1.39213974,89370.0,89369.0,0.001043]
[1765772765105,0.39213974,89370.0,89369.0,0.001043]
[1765772765346,1.39213974,89370.0,89369.0,0.001043]
[1765772768409,1.41630343,89370.0,89369.0,0.001043]
[1765772768716,1.24170343,89370.0,89369.0,0.001043]
[1765772768896,1.24070343,89370.0,89369.0,0.001043]
[1765772769325,1.30808243,89370.0,89369.0,3e-06]
[1765772769526,1.0,89366.0,89364.0,0.0002]
[1765772769657,1.01537,89365.0,89364.0,0.0002]
[1765772769858,1.126591,89365.0,89364.0,0.0002]
[1765772770068,1.151011,89365.0,89364.0,0.0002]
[1765772770261,1.37481226,89365.0,89364.0,0.0002]
[1765772770893,1.26359126,89365.0,89364.0,0.0002]
[1765772771093,1.37481226,89365.0,89364.0,0.0002]
[1765772771319,1.31946113,89365.0,89364.0,0.0002]
[1765772771531,1.39249226,89365.0,89364.0,0.0002]
[1765772771958,1.39549226,89365.0,89364.0,0.0002]
[1765772772715,1.39649226,89365.0,89364.0,0.0002]
[1765772772918,0.22381378,89360.0,89359.0,0.00024245]
[1765772773119,1.36203478,89360.0,89359.0,0.00024245]
[1765772773325,1.11973378,89360.0,89359.0,0.00024245]
[1765772773533,0.38645478,89360.0,89359.0,0.00024245]
[1765772774058,0.65925478,89360.0,89359.0,0.00024245]
[1765772774247,0.38645478,89360.0,89359.0,0.00024245]
[1765772774427,0.66325478,89360.0,89359.0,0.00024245]
[1765772775234,0.38845478,89360.0,89359.0,0.00024245]
[1765772775418,1.38845478,89360.0,89359.0,0.00024245]
[1765772775621,0.38845478,89360.0,89359.0,0.00024245]
[1765772776467,0.27723378,89360.0,89359.0,0.00024245]
[1765772778098,0.29491378,89360.0,89359.0,0.00024245]
[1765772789286,0.40613478,89360.0,89359.0,0.00024245]
[1765772789538,0.29491378,89360.0,89359.0,0.00024245]
[1765772789869,0.40613478,89360.0,89359.0,0.00024245]
[1765772791178,1.40613478,89360.0,89359.0,0.00024245]
[1765772791402,0.23506264,89338.0,89332.0,0.15959419]
[1765772791577,0.01119369,89336.0,89333.0,0.01119407]
[1765772792298,0.01119357,89337.0,89333.0,0.01119407]
[1765772792455,0.02334,89336.0,89334.0,0.01119394]
[1765772792657,0.01119357,89337.0,89334.0,0.01119394]
[1765772793046,0.01119357,89337.0,89333.0,0.01119407]
[1765772793580,0.23506264,89338.0,89333.0,0.01119407]
[1765772793581,0.01119344,89338.0,89334.0,0.01119394]
[1765772793805,0.01175,89339.0,89336.0,0.01119369]
[1765772794490,0.02294331,89339.0,89336.0,0.01119369]
[1765772794730,0.01119357,89337.0,89334.0,0.01219394]
[1765772795026,0.23506531,89337.0,89334.0,0.001]
[1765772795182,0.01119281,89343.0,89338.0,0.01119344]
[1765772795379,0.2238315,89353.0,89345.0,0.22385136]
[1765772796328,0.02334,89351.0,89345.0,0.22385136]
[1765772796727,0.03453181,89351.0,89345.0,0.22385136]
[1765772796932,0.01868,89347.0,89345.0,0.22385136]
[1765772799356,0.01868,89347.0,89344.0,0.01119269]
[1765772799543,0.01119244,89346.0,89341.0,0.01119306]
[1765772799746,0.01119256,89345.0,89341.0,0.01119306]
[1765772799950,0.01119256,89345.0,89339.0,0.01119331]
[1765772799951,0.01119281,89343.0,89339.0,0.01119331]
[1765772800151,0.01119294,89342.0,89339.0,0.01119331]
[1765772800354,0.01119281,89343.0,89339.0,0.01119331]
[1765772800355,0.23504985,89343.0,89339.0,0.23505941]
[1765772800589,0.25838985,89343.0,89339.0,0.23505941]
[1765772801315,0.02334,89343.0,89340.0,0.01119319]
[1765772801555,0.02334,89343.0,89341.0,0.22386138]
[1765772801732,0.02294256,89345.0,89341.0,0.23505444]
[1765772801933,0.01175,89345.0,89342.0,0.01119294]
[1765772802135,0.02294256,89345.0,89342.0,0.01119294]
[1765772802718,0.03509,89345.0,89343.0,0.22385637]
[1765772802918,0.03509,89345.0,89342.0,0.01119294]
[1765772803129,0.03509,89345.0,89344.0,0.00045469]
[1765772803332,0.01175,89345.0,89344.0,0.00045469]
[1765772803533,0.02811,89345.0,89344.0,0.00045469]
[1765772803948,0.05306287,89345.0,89344.0,0.00045469]
[1765772804182,0.16428387,89345.0,89344.0,0.00045469]
[1765772805169,0.05306287,89345.0,89344.0,0.00045469]
[1765772810988,0.00161287,89345.0,89344.0,0.00045469]
[1765772811185,0.01768,89349.0,89347.0,0.01119231]
[1765772811852,0.01768,89349.0,89347.0,0.23503724]
[1765772812034,0.01119181,89351.0,89347.0,0.23503724]
[1765772812250,0.001,89349.0,89348.0,0.01119219]
[1765772813020,0.02334,89351.0,89348.0,0.01119219]
[1765772813222,0.02434,89351.0,89348.0,0.01119219]
[1765772813419,0.001,89349.0,89348.0,0.01119219]
[1765772814855,0.01119144,89354.0,89351.0,0.01119181]
[1765772815055,0.02887131,89355.0,89351.0,0.01119181]
[1765772815234,0.01768,89355.0,89351.0,0.01119181]
[1765772815442,0.01768,89355.0,89352.0,0.01119169]
[1765772815680,0.01768,89355.0,89354.0,0.22382881]
[1765772817142,0.01768,89355.0,89352.0,0.23502309]
[1765772817790,0.01119181,89351.0,89344.0,0.23504491]
[1765772817956,0.01119194,89350.0,89346.0,0.23504107]
[1765772819087,0.23503087,89350.0,89346.0,0.01119244]
[1765772819309,0.01119194,89350.0,89346.0,0.23504039]
[1765772819646,0.01119206,89349.0,89347.0,0.001]
[1765772820047,0.01119194,89350.0,89347.0,0.001]
[1765772820343,0.01119194,89350.0,89347.0,0.01219231]
[1765772820799,0.23503203,89350.0,89347.0,0.001]
[1765772821000,0.23899384,89348.0,89347.0,0.001]
[1765772821214,0.26358384,89348.0,89347.0,0.001]
[1765772821381,0.26519671,89348.0,89347.0,0.002]
[1765772821753,0.01119331,89339.0,89335.0,0.01119382]
[1765772821993,0.01119331,89339.0,89336.0,0.03361967]
[1765772822687,0.01119331,89339.0,89336.0,0.04481336]
[1765772823032,0.01119331,89339.0,89338.0,0.0006366]
[1765772823833,0.05093331,89339.0,89338.0,0.0006366]
[1765772824632,0.05093331,89339.0,89338.0,0.0016366]
[1765772825032,0.05093331,89339.0,89338.0,0.0006366]
[1765772825273,0.05093331,89339.0,89338.0,0.0016366]
[1765772825743,0.05093331,89339.0,89338.0,0.0026366]
[1765772828248,0.01119331,89339.0,89338.0,0.0026366]
[1765772828486,0.01119306,89341.0,89338.0,0.0026366]
[1765772828620,0.01119306,89341.0,89338.0,0.01319344]
[1765772828803,0.01119306,89341.0,89340.0,0.00057596]
[1765772829852,0.01119269,89344.0,89340.0,0.01176915]
[1765772830031,0.01119269,89344.0,89338.0,0.002]
[1765772830252,0.01119269,89344.0,89338.0,0.001]
[1765772830423,0.01119319,89340.0,89336.0,0.01119369]
[1765772830635,0.01119294,89342.0,89338.0,0.01119344]
[1765772830824,0.01119294,89342.0,89339.0,0.01119331]
[1765772831228,0.01119319,89340.0,89337.0,0.01119357]
[1765772831426,0.01119357,89337.0,89333.0,0.24626928]
[1765772831774,0.01119357,89337.0,89334.0,0.01119394]
[1765772831994,0.01119344,89338.0,89335.0,0.01119382]
[1765772832248,0.01171,89339.0,89336.0,0.01119369]
[1765772832653,0.02290331,89339.0,89336.0,0.01119369]
[1765772832884,0.02290331,89339.0,89337.0,0.001]
[1765772833333,0.02290331,89339.0,89336.0,0.01119369]
[1765772833551,0.01171,89339.0,89336.0,0.01119369]
[1765772833939,0.01171,89339.0,89337.0,0.2238714]
[1765772834092,0.01515,89337.0,89333.0,0.02238789]
[1765772834290,0.01515,89334.0,89333.0,0.01119382]
[1765772834494,0.23902892,89334.0,89333.0,0.01119382]
[1765772834722,0.26361892,89334.0,89333.0,0.01119382]
[1765772835392,0.03974,89334.0,89333.0,0.01119382]
[1765772835527,0.01515,89334.0,89333.0,0.01319382]
[1765772835730,0.01171,89339.0,89336.0,0.01119369]
[1765772835928,0.01171,89339.0,89338.0,0.0006366]
[1765772836560,0.0363,89339.0,89338.0,0.0006366]
[1765772836986,0.135811,89344.0,89340.0,0.01119319]
[1765772837229,0.01119169,89352.0,89344.0,0.22385386]
[1765772837447,0.01119156,89353.0,89344.0,0.22385386]
[1765772837797,0.04749144,89354.0,89344.0,0.22385386]
[1765772838001,0.01119156,89353.0,89344.0,0.22385386]
[1765772838199,0.01119169,89352.0,89344.0,0.22385386]
[1765772838619,0.04749144,89354.0,89344.0,0.22385386]
[1765772838897,0.01868,89345.0,89344.0,0.22385386]
[1765772839560,0.01868,89345.0,89344.0,0.22485386]
[1765772847525,0.001,89345.0,89344.0,0.22485386]
[1765772847928,0.001,89345.0,89344.0,0.22530855]
[1765772855544,0.001,89345.0,89344.0,0.00145469]
[1765772856746,0.22485136,89345.0,89344.0,0.00145469]
[1765772856950,0.001,89345.0,89344.0,0.00145469]
[1765772861625,0.04023,89345.0,89344.0,0.00145469]
[1765772862180,0.01689,89345.0,89344.0,0.00145469]
[1765772862408,0.001,89345.0,89344.0,0.00145469]
[1765772862833,0.23503613,89348.0,89344.0,0.00145469]
[1765772863085,0.01119244,89346.0,89342.0,0.01119294]
[1765772863222,0.23504184,89346.0,89340.0,0.01119319]
[1765772863408,0.23504184,89346.0,89344.0,0.001]
[1765772863904,0.01119256,89345.0,89342.0,0.01119294]
[1765772864924,0.01119206,89349.0,89346.0,0.01119244]
[1765772865160,0.01119219,89348.0,89343.0,0.01119281]
[1765772865366,0.23503866,89347.0,89343.0,0.01119281]
[1765772865542,0.23184315,89347.0,89343.0,0.01119281]
[1765772865925,0.01119244,89346.0,89342.0,0.01219294]
[1765772866347,0.01119244,89346.0,89342.0,0.01119294]
[1765772866553,0.01119269,89344.0,89341.0,0.01119306]
[1765772866882,0.01119244,89346.0,89342.0,0.01119294]
[1765772867172,0.01119231,89347.0,89344.0,0.01119269]
[1765772867345,0.01119244,89346.0,89343.0,0.01119281]
[1765772868134,0.01119231,89347.0,89344.0,0.01119269]
[1765772868366,0.01119231,89347.0,89346.0,0.00039405]
[1765772868580,0.01119219,89348.0,89346.0,0.00039405]
[1765772868820,0.01119219,89348.0,89345.0,0.01119256]
[1765772869115,0.01119244,89346.0,89343.0,0.01119281]
[1765772869258,0.01119244,89346.0,89343.0,0.001]
[1765772869648,0.01119244,89346.0,89342.0,0.01119294]
[1765772870279,0.2350387,89347.0,89343.0,0.01119281]
[1765772871116,0.01119231,89347.0,89343.0,0.01119281]
[1765772871768,0.01119206,89349.0,89344.0,0.23504655]
[1765772871901,0.01119219,89348.0,89345.0,0.01119256]
[1765772873528,0.02334,89351.0,89347.0,0.22384385]
[1765772873529,0.01119181,89351.0,89347.0,0.22384385]
[1765772873739,0.23503063,89351.0,89346.0,0.01119244]
[1765772873949,0.22384134,89349.0,89347.0,0.00036374]
[1765772874173,0.01119194,89350.0,89346.0,0.01119244]
[1765772874410,0.23503321,89350.0,89348.0,0.00033342]
[1765772874609,0.23503321,89350.0,89346.0,0.01119244]
[1765772874800,0.01119194,89350.0,89346.0,0.01119244]
[1765772875030,0.01119181,89351.0,89346.0,0.01119244]
[1765772875236,0.03453194,89350.0,89346.0,0.01119244]
[1765772875806,0.01119206,89349.0,89344.0,0.01119269]
[1765772876189,0.01119231,89347.0,89344.0,0.01119269]
[1765772876386,0.01119219,89348.0,89344.0,0.22385386]
[1765772877023,0.01119194,89350.0,89346.0,0.22384774]
[1765772877228,0.01119194,89350.0,89344.0,0.23504655]
[1765772877777,0.01119194,89350.0,89347.0,0.01119231]
[1765772878019,0.01119206,89349.0,89344.0,0.23504655]
[1765772878196,0.01119206,89349.0,89345.0,0.01119256]
[1765772878580,0.03517,89355.0,89345.0,0.01119256]
[1765772878581,0.01768,89352.0,89347.0,0.01119231]
[1765772878991,0.05237169,89352.0,89349.0,0.01119206]
[1765772879524,0.01119181,89351.0,89348.0,0.01119219]
[1765772879693,0.01119194,89350.0,89347.0,0.01119231]
[1765772879898,0.01119194,89350.0,89349.0,0.00030311]
[1765772880889,0.001,89352.0,89349.0,0.23533567]
[1765772881099,0.001,89352.0,89349.0,0.23503256]
[1765772881280,0.001,89352.0,89351.0,0.1113]
[1765772881645,0.001,89352.0,89351.0,0.12898]
[1765772882148,0.02886956,89369.0,89366.0,0.01118993]
[1765772882830,0.01768,89369.0,89366.0,0.01118993]
[1765772883164,0.02886956,89369.0,89364.0,0.01119018]
[1765772883586,0.22379375,89368.0,89364.0,0.01119018]
[1765772883790,0.03186956,89369.0,89364.0,0.01119018]
[1765772884602,0.03186956,89369.0,89365.0,0.23499132]
[1765772884804,0.03086956,89369.0,89366.0,0.01118993]
[1765772885009,0.01768,89369.0,89366.0,0.01118993]
[1765772885185,0.01868,89369.0,89366.0,0.01118993]
[1765772885398,0.002,89368.0,89366.0,0.01118993]
[1765772885600,0.002,89368.0,89367.0,0.22379625]
[1765772885798,0.01768,89369.0,89366.0,0.01118993]
[1765772886003,0.02068,89369.0,89366.0,0.01118993]
[1765772886198,0.02068,89369.0,89367.0,0.22379625]
[1765772886369,0.01768,89369.0,89366.0,0.01118993]
[1765772886573,0.002,89368.0,89367.0,0.22379625]
[1765772886770,0.003,89368.0,89367.0,0.22379625]
[1765772887017,0.001,89368.0,89367.0,0.22379625]
[1765772888015,0.01118868,89376.0,89372.0,0.01118918]
[1765772888217,0.01118868,89376.0,89373.0,0.01118906]
[1765772888417,0.26480506,89379.0,89375.0,0.01118881]
[1765772888622,0.25263506,89379.0,89375.0,0.01118881]
[1765772888977,0.01118843,89378.0,89374.0,0.01118893]
[1765772889153,0.02886806,89381.0,89376.0,0.22377372]
[1765772889363,0.01118818,89380.0,89375.0,0.01118881]
[1765772889564,0.005,89379.0,89377.0,0.22377109]
[1765772889755,0.005,89379.0,89377.0,0.22377121]
[1765772889994,0.002,89379.0,89377.0,0.22377121]
[1765772890391,0.003,89378.0,89377.0,0.22377121]
[1765772891563,0.01868,89381.0,89379.0,0.22376492]
[1765772891752,0.01768,89381.0,89379.0,0.22376492]
[1765772892926,0.01868,89381.0,89379.0,0.22376492]
[1765772893124,0.01968,89381.0,89379.0,0.22376492]
[1765772893334,0.002,89381.0,89379.0,0.22376492]
[1765772894234,0.001,89381.0,89379.0,0.22376492]
[1765772894436,0.23491824,89393.0,89379.0,0.22376492]
[1765772894437,0.0111868,89391.0,89388.0,0.01118718]
[1765772894610,9.419e-05,89391.0,89389.0,0.01118705]
[1765772895652,0.00409419,89391.0,89390.0,0.22373867]
[1765772896000,9.419e-05,89391.0,89390.0,0.22373867]
[1765772896243,0.00209419,89391.0,89390.0,0.22373867]
[1765772897631,0.00409419,89391.0,89390.0,0.22373867]
[1765772897986,9.419e-05,89391.0,89390.0,0.22373867]
[1765772898186,9.419e-05,89391.0,89389.0,0.01118705]
[1765772898505,0.01528099,89391.0,89382.0,0.23494525]
[1765772898715,0.01118831,89379.0,89376.0,0.01118868]
[1765772898914,0.23495714,89378.0,89377.0,0.01118668]
[1765772899091,0.23495714,89378.0,89366.0,0.01764]
[1765772899092,0.01118931,89371.0,89366.0,0.23498722]
[1765772899474,0.01118943,89370.0,89367.0,0.01118981]
[1765772900728,0.2349808,89369.0,89365.0,0.01119006]
[1765772900905,0.01623,89365.0,89362.0,0.22380877]
[1765772901087,0.02335956,89369.0,89363.0,0.01119031]
[1765772901304,0.01118956,89369.0,89363.0,0.01119031]
[1765772901505,0.01118956,89369.0,89365.0,0.01119006]
[1765772901707,0.01118956,89369.0,89367.0,0.003]
[1765772901903,0.01118931,89371.0,89367.0,0.002]
[1765772902263,0.01118943,89370.0,89367.0,0.01118981]
[1765772902557,0.01118968,89368.0,89364.0,0.01119018]
[1765772902761,0.01118981,89367.0,89364.0,0.01119018]
[1765772903112,0.01118968,89368.0,89364.0,0.01119018]
[1765772904043,0.01118968,89368.0,89365.0,0.01119006]
[1765772904220,0.02882956,89369.0,89366.0,0.01118993]
[1765772904221,0.01764,89369.0,89366.0,0.01118993]